[Event "Live Chess"]
[Site "Chess.com"]
[Date "2024.06.02"]
[Round "-"]
[White "resipsa6"]
[Black "jimwad"]
[Result "1-0"]
[WhiteElo "2033"]
[BlackElo "1322"]
[TimeControl "300"]
[EndTime "6:56:03 PDT"]
[Termination "resipsa6 won by checkmate"]

1. e4 {[%clk 0:04:59.4]} 1... e5 {[%clk 0:04:58.9]} 2. d4 {[%clk 0:04:58.7]}
2... exd4 {[%clk 0:04:57.5]} 3. Nf3 {[%clk 0:04:58]} 3... Nc6 {[%clk 0:04:55.2]}
4. Bc4 {[%clk 0:04:56.8]} 4... Bc5 {[%clk 0:04:53.5]} 5. c3 {[%clk 0:04:45.4]}
5... Nf6 {[%clk 0:04:46.5]} 6. cxd4 {[%clk 0:04:42]} 6... Bb4+ {[%clk
0:04:45.4]} 7. Bd2 {[%clk 0:04:40.5]} 7... Bxd2+ {[%clk 0:04:43.7]} 8. Nbxd2
{[%clk 0:04:40.4]} 8... O-O {[%clk 0:04:39.8]} 9. O-O {[%clk 0:04:37.8]} 9... d6
{[%clk 0:04:38.5]} 10. e5 {[%clk 0:04:35.1]} 10... dxe5 {[%clk 0:04:37.2]} 11.
dxe5 {[%clk 0:04:34.4]} 11... Ng4 {[%clk 0:04:32.8]} 12. Re1 {[%clk 0:04:28.9]}
12... Be6 {[%clk 0:04:11.1]} 13. Bxe6 {[%clk 0:04:16.6]} 13... fxe6 {[%clk
0:04:09.1]} 14. h3 {[%clk 0:04:16.3]} 14... Nh6 {[%clk 0:04:05.7]} 15. Qb3
{[%clk 0:04:13.2]} 15... Nd4 {[%clk 0:03:50]} 16. Nxd4 {[%clk 0:04:08.5]} 16...
Qxd4 {[%clk 0:03:48.1]} 17. Qxe6+ {[%clk 0:04:02.3]} 17... Kh8 {[%clk
0:03:44.8]} 18. Nf3 {[%clk 0:03:50.2]} 18... Qxb2 {[%clk 0:03:38.8]} 19. Rab1
{[%clk 0:03:42.2]} 19... Qc3 {[%clk 0:03:21]} 20. Rec1 {[%clk 0:03:34.6]} 20...
Qd3 {[%clk 0:03:10.2]} 21. Rxb7 {[%clk 0:03:27.6]} 21... Nf7 {[%clk 0:02:43.8]}
22. Rcxc7 {[%clk 0:03:06.4]} 22... Qg6 {[%clk 0:02:26.9]} 23. Qxg6 {[%clk
0:03:01]} 23... hxg6 {[%clk 0:02:25.4]} 24. Rxf7 {[%clk 0:03:00.5]} 24... Rxf7
{[%clk 0:02:19.6]} 25. Rxf7 {[%clk 0:03:00.4]} 25... Kg8 {[%clk 0:02:18.6]} 26.
Rb7 {[%clk 0:02:58.1]} 26... a5 {[%clk 0:02:15.8]} 27. e6 {[%clk 0:02:56.8]}
27... Re8 {[%clk 0:02:14.7]} 28. Ng5 {[%clk 0:02:53.4]} 28... Kf8 {[%clk
0:02:10.5]} 29. Rf7+ {[%clk 0:02:47.8]} 29... Kg8 {[%clk 0:02:08.9]} 30. e7
{[%clk 0:02:41.4]} 30... a4 {[%clk 0:02:05.3]} 31. Kf1 {[%clk 0:02:37.7]} 31...
a3 {[%clk 0:02:01.7]} 32. Ke2 {[%clk 0:02:36.9]} 32... Rb8 {[%clk 0:01:59.5]}
33. Kd3 {[%clk 0:02:34.2]} 33... Rb5 {[%clk 0:01:53.5]} 34. Rf8# {[%clk
0:02:32.8]} 1-0

[Event "Live Chess"]
[Site "Chess.com"]
[Date "2024.06.02"]
[Round "-"]
[White "degringolade64"]
[Black "Step-S"]
[Result "1-0"]
[WhiteElo "2087"]
[BlackElo "1325"]
[TimeControl "300"]
[EndTime "6:56:10 PDT"]
[Termination "degringolade64 won by resignation"]

1. e4 {[%clk 0:04:54.6]} 1... c6 {[%clk 0:04:58]} 2. d4 {[%clk 0:04:52.2]} 2...
d5 {[%clk 0:04:57.2]} 3. e5 {[%clk 0:04:51.2]} 3... Bf5 {[%clk 0:04:54.5]} 4. h4
{[%clk 0:04:48.9]} 4... e6 {[%clk 0:04:53]} 5. g4 {[%clk 0:04:46.3]} 5... Be4
{[%clk 0:04:48.6]} 6. f3 {[%clk 0:04:43.8]} 6... Bxc2 {[%clk 0:04:19.5]} 7. Qxc2
{[%clk 0:04:41.5]} 7... Nd7 {[%clk 0:04:17.4]} 8. Nc3 {[%clk 0:04:31.8]} 8... a6
{[%clk 0:04:13.3]} 9. Be3 {[%clk 0:04:29.8]} 9... Nb6 {[%clk 0:04:11.8]} 10. h5
{[%clk 0:04:19.7]} 10... Nc4 {[%clk 0:04:05.5]} 11. Bxc4 {[%clk 0:04:17.5]}
11... dxc4 {[%clk 0:04:04.4]} 12. O-O-O {[%clk 0:04:11.6]} 12... b5 {[%clk
0:03:55.1]} 13. Kb1 {[%clk 0:04:02.9]} 13... a5 {[%clk 0:03:50.4]} 14. Ne4
{[%clk 0:03:57.1]} 14... Ne7 {[%clk 0:03:34.1]} 15. Nd6+ {[%clk 0:03:54.7]}
15... Kd7 {[%clk 0:03:23.7]} 16. Nxf7 {[%clk 0:03:53.4]} 16... Qb6 {[%clk
0:03:04.7]} 17. Nxh8 {[%clk 0:03:45.7]} 17... Nd5 {[%clk 0:03:01]} 18. Bf2
{[%clk 0:03:43.6]} 18... a4 {[%clk 0:02:51.6]} 19. Ne2 {[%clk 0:03:28.2]} 19...
Nb4 {[%clk 0:02:33.5]} 20. Qe4 {[%clk 0:02:19.4]} 20... a3 {[%clk 0:02:18.5]}
21. d5 {[%clk 0:02:07]} 21... cxd5 {[%clk 0:02:12.7]} 22. Bxb6 {[%clk
0:02:04.4]} 22... axb2 {[%clk 0:02:04.7]} 23. Nc3 {[%clk 0:01:58.2]} 1-0

[Event "Live Chess"]
[Site "Chess.com"]
[Date "2024.06.02"]
[Round "-"]
[White "GEMdzq"]
[Black "Nazar-Makarchuk"]
[Result "1-0"]
[WhiteElo "2295"]
[BlackElo "1484"]
[TimeControl "300"]
[EndTime "6:56:33 PDT"]
[Termination "GEMdzq won by resignation"]

1. e4 {[%clk 0:04:58.1]} 1... d5 {[%clk 0:04:58.8]} 2. exd5 {[%clk 0:04:57]}
2... Qxd5 {[%clk 0:04:57.6]} 3. Nc3 {[%clk 0:04:56.6]} 3... Qd8 {[%clk
0:04:56.3]} 4. d4 {[%clk 0:04:56.2]} 4... Nf6 {[%clk 0:04:55.9]} 5. Bc4 {[%clk
0:04:55.7]} 5... e6 {[%clk 0:04:55.2]} 6. Nf3 {[%clk 0:04:55.1]} 6... c5 {[%clk
0:04:54.8]} 7. O-O {[%clk 0:04:52.2]} 7... cxd4 {[%clk 0:04:53.8]} 8. Nxd4
{[%clk 0:04:52.1]} 8... Bc5 {[%clk 0:04:52.4]} 9. Be3 {[%clk 0:04:50.5]} 9...
Bxd4 {[%clk 0:04:51.3]} 10. Bxd4 {[%clk 0:04:50.4]} 10... Nc6 {[%clk 0:04:50.6]}
11. Bc5 {[%clk 0:04:48]} 11... Qxd1 {[%clk 0:04:49.4]} 12. Raxd1 {[%clk
0:04:47.9]} 12... Bd7 {[%clk 0:04:47]} 13. Nb5 {[%clk 0:04:45.8]} 13... O-O-O
{[%clk 0:04:43.3]} 14. Nd6+ {[%clk 0:04:45]} 14... Kc7 {[%clk 0:04:37]} 15. Nxf7
{[%clk 0:04:44.9]} 15... Nd5 {[%clk 0:04:33.7]} 16. Bd6+ {[%clk 0:04:36.8]}
16... Kb6 {[%clk 0:04:31]} 17. Nxh8 {[%clk 0:04:34.2]} 17... Rxh8 {[%clk
0:04:29.7]} 18. Bxd5 {[%clk 0:04:29.5]} 18... exd5 {[%clk 0:04:28.7]} 19. Rxd5
{[%clk 0:04:29.4]} 19... Rd8 {[%clk 0:04:22.8]} 20. a4 {[%clk 0:04:19.5]} 20...
a5 {[%clk 0:04:20]} 21. Rb5+ {[%clk 0:04:11.9]} 21... Ka7 {[%clk 0:04:17.8]} 22.
Bc5+ {[%clk 0:04:03.9]} 22... Ka8 {[%clk 0:04:15.5]} 23. Bb6 {[%clk 0:04:02.7]}
23... Rc8 {[%clk 0:04:11.5]} 24. Rd1 {[%clk 0:04:00.6]} 24... Be8 {[%clk
0:04:07.6]} 25. Bxa5 {[%clk 0:03:57.8]} 25... Nxa5 {[%clk 0:04:03.6]} 26. Rxa5+
{[%clk 0:03:57.7]} 26... Kb8 {[%clk 0:04:02.3]} 27. c3 {[%clk 0:03:56.2]} 27...
Bc6 {[%clk 0:04:00.5]} 28. Re5 {[%clk 0:03:50.6]} 28... Bxa4 {[%clk 0:03:55.5]}
29. Re7 {[%clk 0:03:50.1]} 29... Bxd1 {[%clk 0:03:51.4]} 30. Rxg7 {[%clk
0:03:48.5]} 30... Bc2 {[%clk 0:03:48.1]} 31. f4 {[%clk 0:03:39]} 31... Rf8
{[%clk 0:03:44.2]} 32. g3 {[%clk 0:03:37.3]} 32... Re8 {[%clk 0:03:37.2]} 33.
Kf2 {[%clk 0:03:36.4]} 33... Bg6 {[%clk 0:03:33.3]} 34. g4 {[%clk 0:03:35]}
34... Re4 {[%clk 0:03:29.2]} 35. f5 {[%clk 0:03:31.3]} 35... Be8 {[%clk
0:03:20.4]} 36. f6 {[%clk 0:03:19.5]} 36... Rxg4 {[%clk 0:03:17.6]} 37. Rxg4
{[%clk 0:03:18.1]} 37... Bg6 {[%clk 0:03:15.2]} 38. Rxg6 {[%clk 0:03:17.1]} 1-0

[Event "Live Chess"]
[Site "Chess.com"]
[Date "2024.06.02"]
[Round "-"]
[White "DoctorMantisTobogganMD"]
[Black "Val1024"]
[Result "1-0"]
[WhiteElo "2210"]
[BlackElo "1747"]
[TimeControl "300"]
[EndTime "6:56:41 PDT"]
[Termination "DoctorMantisTobogganMD won by resignation"]

1. e4 {[%clk 0:04:59.3]} 1... e5 {[%clk 0:04:54.9]} 2. Nc3 {[%clk 0:04:58]} 2...
Nc6 {[%clk 0:04:49.4]} 3. Bc4 {[%clk 0:04:57.5]} 3... Bb4 {[%clk 0:04:45.6]} 4.
Nge2 {[%clk 0:04:56]} 4... d6 {[%clk 0:04:43.3]} 5. O-O {[%clk 0:04:55]} 5...
Bg4 {[%clk 0:04:41.4]} 6. f3 {[%clk 0:04:53.7]} 6... Bh5 {[%clk 0:04:40.8]} 7.
d3 {[%clk 0:04:52.5]} 7... Nf6 {[%clk 0:04:37.5]} 8. Ng3 {[%clk 0:04:50.7]} 8...
Bg6 {[%clk 0:04:35.8]} 9. f4 {[%clk 0:04:50.2]} 9... exf4 {[%clk 0:04:33.8]} 10.
Bxf4 {[%clk 0:04:49.8]} 10... Nd7 {[%clk 0:04:20.3]} 11. Nd5 {[%clk 0:04:41.6]}
11... Bc5+ {[%clk 0:04:16.2]} 12. Kh1 {[%clk 0:04:40.1]} 12... Nce5 {[%clk
0:04:03.5]} 13. Bb3 {[%clk 0:04:37.9]} 13... Bb6 {[%clk 0:03:53.1]} 14. Nxb6
{[%clk 0:04:28.1]} 14... Nxb6 {[%clk 0:03:48.3]} 15. a4 {[%clk 0:04:20.2]} 15...
Qh4 {[%clk 0:03:46.1]} 16. Bxe5 {[%clk 0:04:14.9]} 16... dxe5 {[%clk 0:03:43.1]}
17. Nf5 {[%clk 0:04:13.8]} 17... Bxf5 {[%clk 0:03:39]} 18. Rxf5 {[%clk
0:04:13.7]} 18... f6 {[%clk 0:03:29.7]} 19. Rh5 {[%clk 0:03:54.5]} 19... Qf4
{[%clk 0:03:22]} 20. Rf5 {[%clk 0:03:45.1]} 20... Qe3 {[%clk 0:03:15.4]} 21. Qg4
{[%clk 0:03:42.8]} 21... Kf8 {[%clk 0:03:02.1]} 22. Raf1 {[%clk 0:03:33.9]}
22... Re8 {[%clk 0:02:05.5]} 23. Qh5 {[%clk 0:02:52.1]} 23... Re7 {[%clk
0:01:51.4]} 24. Rxe5 {[%clk 0:02:26.8]} 24... g6 {[%clk 0:01:37.4]} 25. Rxf6+
{[%clk 0:02:19.3]} 25... Ke8 {[%clk 0:01:36.4]} 26. Rxe7+ {[%clk 0:02:14.5]}
26... Kd8 {[%clk 0:01:22.1]} 27. Qf3 {[%clk 0:01:31.2]} 27... Qe1+ {[%clk
0:01:15.2]} 28. Qf1 {[%clk 0:01:29.5]} 28... Qxf1+ {[%clk 0:01:14.8]} 29. Rxf1
{[%clk 0:01:28.3]} 29... Kxe7 {[%clk 0:01:14.5]} 30. Rf7+ {[%clk 0:01:27.9]}
30... Kd6 {[%clk 0:01:14.1]} 31. Kg1 {[%clk 0:01:25.6]} 31... Nd7 {[%clk
0:01:11.7]} 32. d4 {[%clk 0:01:22.1]} 32... Rf8 {[%clk 0:00:52.3]} 33. e5+
{[%clk 0:01:20]} 33... Kc6 {[%clk 0:00:49.6]} 34. d5+ {[%clk 0:01:17.6]} 1-0

[Event "Live Chess"]
[Site "Chess.com"]
[Date "2024.06.02"]
[Round "-"]
[White "GerardATHart"]
[Black "ACM42"]
[Result "1-0"]
[WhiteElo "1377"]
[BlackElo "2198"]
[TimeControl "300"]
[EndTime "6:56:42 PDT"]
[Termination "GerardATHart won by checkmate"]

1. e4 {[%clk 0:04:57.2]} 1... e6 {[%clk 0:04:58.9]} 2. d4 {[%clk 0:04:54.8]}
2... d5 {[%clk 0:04:57.7]} 3. Nd2 {[%clk 0:04:53.5]} 3... Nf6 {[%clk 0:04:56.4]}
4. e5 {[%clk 0:04:50.4]} 4... Nfd7 {[%clk 0:04:55.7]} 5. f4 {[%clk 0:04:45.3]}
5... c5 {[%clk 0:04:54.9]} 6. Ndf3 {[%clk 0:04:43.8]} 6... Nc6 {[%clk
0:04:54.2]} 7. Ne2 {[%clk 0:04:34.8]} 7... Qb6 {[%clk 0:04:51.8]} 8. c3 {[%clk
0:04:24.8]} 8... a5 {[%clk 0:04:44.5]} 9. a3 {[%clk 0:04:19.5]} 9... Be7 {[%clk
0:04:40.2]} 10. b3 {[%clk 0:04:18]} 10... f6 {[%clk 0:04:38.4]} 11. exf6 {[%clk
0:03:52.5]} 11... Nxf6 {[%clk 0:04:28.1]} 12. Ng3 {[%clk 0:03:38.1]} 12... O-O
{[%clk 0:04:21.1]} 13. Bd3 {[%clk 0:03:34.2]} 13... g6 {[%clk 0:04:13.6]} 14.
Qc2 {[%clk 0:03:27.9]} 14... Kg7 {[%clk 0:04:06.7]} 15. h4 {[%clk 0:03:17.5]}
15... cxd4 {[%clk 0:04:05.6]} 16. cxd4 {[%clk 0:03:10.3]} 16... Nxd4 {[%clk
0:04:03.4]} 17. Nxd4 {[%clk 0:03:07.7]} 17... Qxd4 {[%clk 0:04:02.6]} 18. h5
{[%clk 0:03:01.2]} 18... Ne4 {[%clk 0:03:55.8]} 19. hxg6 {[%clk 0:02:51.7]}
19... hxg6 {[%clk 0:03:47.6]} 20. Nxe4 {[%clk 0:02:43.3]} 20... dxe4 {[%clk
0:03:46.1]} 21. Bxe4 {[%clk 0:02:41.6]} 21... Qxa1 {[%clk 0:03:36.3]} 22. Bxg6
{[%clk 0:02:39.7]} 22... Qf6 {[%clk 0:03:07.5]} 23. Rh7+ {[%clk 0:02:32.3]}
23... Kg8 {[%clk 0:03:06.3]} 24. Bb2 {[%clk 0:02:22.2]} 24... b5 {[%clk
0:02:58]} 25. Bxf6 {[%clk 0:02:19.7]} 25... Bxf6 {[%clk 0:02:57.2]} 26. Qc7
{[%clk 0:02:00.9]} 26... e5 {[%clk 0:02:25.4]} 27. Rh8+ {[%clk 0:01:09.4]} 27...
Bxh8 {[%clk 0:02:02.9]} 28. Qh7# {[%clk 0:01:06.3]} 1-0

[Event "Live Chess"]
[Site "Chess.com"]
[Date "2024.06.02"]
[Round "-"]
[White "missedJariChance"]
[Black "Ferrarifan27"]
[Result "0-1"]
[WhiteElo "1384"]
[BlackElo "2130"]
[TimeControl "300"]
[EndTime "6:56:44 PDT"]
[Termination "Ferrarifan27 won by resignation"]

1. b3 {[%clk 0:04:56.4]} 1... e5 {[%clk 0:04:58.1]} 2. Bb2 {[%clk 0:04:55.3]}
2... Nc6 {[%clk 0:04:54.9]} 3. Nf3 {[%clk 0:04:54.2]} 3... d6 {[%clk 0:04:51.1]}
4. e3 {[%clk 0:04:52.7]} 4... Nf6 {[%clk 0:04:50]} 5. Be2 {[%clk 0:04:47]} 5...
Be7 {[%clk 0:04:48.1]} 6. c4 {[%clk 0:04:41.9]} 6... O-O {[%clk 0:04:46.7]} 7.
O-O {[%clk 0:04:40]} 7... Bg4 {[%clk 0:04:43.6]} 8. h3 {[%clk 0:04:27.8]} 8...
Bh5 {[%clk 0:04:40]} 9. d3 {[%clk 0:04:18.1]} 9... Re8 {[%clk 0:04:34.6]} 10.
Nbd2 {[%clk 0:04:15.5]} 10... Qd7 {[%clk 0:04:32.1]} 11. Nxe5 {[%clk 0:03:59.2]}
11... Nxe5 {[%clk 0:04:18.3]} 12. Bxh5 {[%clk 0:03:55.2]} 12... Nxd3 {[%clk
0:04:17.2]} 13. Bc3 {[%clk 0:03:46.3]} 13... Nxh5 {[%clk 0:04:14.9]} 14. Qxh5
{[%clk 0:03:43.4]} 14... Nc5 {[%clk 0:04:09.4]} 15. Nf3 {[%clk 0:03:29.7]} 15...
Ne4 {[%clk 0:04:05.7]} 16. Bb2 {[%clk 0:03:23.8]} 16... Bf6 {[%clk 0:04:03.8]}
17. Bxf6 {[%clk 0:03:02.2]} 17... Nxf6 {[%clk 0:04:03.7]} 18. Qa5 {[%clk
0:02:48.1]} 18... b6 {[%clk 0:03:58.5]} 19. Qc3 {[%clk 0:02:45.2]} 19... a5
{[%clk 0:03:43.4]} 20. Rad1 {[%clk 0:02:40.5]} 20... Qf5 {[%clk 0:03:34.7]} 21.
Nd4 {[%clk 0:02:18.5]} 21... Qg6 {[%clk 0:03:31.7]} 22. Nc6 {[%clk 0:02:10.3]}
22... Ne4 {[%clk 0:03:25.7]} 23. Qd4 {[%clk 0:01:54.7]} 23... Ng5 {[%clk
0:03:21.5]} 24. Qg4 {[%clk 0:01:47.4]} 24... Re4 {[%clk 0:03:11]} 25. Qd7 {[%clk
0:01:12.4]} 25... Nxh3+ {[%clk 0:03:05.7]} 26. Qxh3 {[%clk 0:01:08.5]} 26...
Rae8 {[%clk 0:03:01.4]} 27. Rd5 {[%clk 0:00:59.6]} 27... Rg4 {[%clk 0:02:54]}
28. g3 {[%clk 0:00:55.5]} 28... Rxe3 {[%clk 0:02:44.7]} 29. fxe3 {[%clk
0:00:41.1]} 29... Rxg3+ {[%clk 0:02:43.6]} 30. Qxg3 {[%clk 0:00:40]} 30... Qxg3+
{[%clk 0:02:42]} 31. Kh1 {[%clk 0:00:37.3]} 31... Qh3+ {[%clk 0:02:38.3]} 32.
Kg1 {[%clk 0:00:36.2]} 32... Qxe3+ {[%clk 0:02:37]} 33. Rf2 {[%clk 0:00:29.2]}
33... Qe1+ {[%clk 0:02:34]} 34. Kg2 {[%clk 0:00:27.8]} 34... Qe4+ {[%clk
0:02:32.5]} 35. Kg3 {[%clk 0:00:25.9]} 35... h5 {[%clk 0:02:21.3]} 36. Rf4
{[%clk 0:00:18.6]} 36... Qe1+ {[%clk 0:02:20.1]} 37. Rf2 {[%clk 0:00:17]} 37...
h4+ {[%clk 0:02:17.8]} 38. Kg2 {[%clk 0:00:15.5]} 38... h3+ {[%clk 0:02:12.7]}
39. Kxh3 {[%clk 0:00:12.1]} 39... Qxf2 {[%clk 0:02:11.4]} 40. Ne7+ {[%clk
0:00:10.5]} 40... Kf8 {[%clk 0:02:06.6]} 41. Nf5 {[%clk 0:00:08.7]} 41... c6
{[%clk 0:01:58.3]} 42. Rxd6 {[%clk 0:00:06.7]} 42... Qxf5+ {[%clk 0:01:57.3]}
0-1

[Event "Live Chess"]
[Site "Chess.com"]
[Date "2024.06.02"]
[Round "-"]
[White "lateforthesky"]
[Black "CarmelJane"]
[Result "1-0"]
[WhiteElo "2072"]
[BlackElo "2002"]
[TimeControl "300"]
[EndTime "6:57:04 PDT"]
[Termination "lateforthesky won on time"]

1. e4 {[%clk 0:04:53]} 1... c5 {[%clk 0:04:59]} 2. Nf3 {[%clk 0:04:51.1]} 2...
e6 {[%clk 0:04:58.5]} 3. c3 {[%clk 0:04:48.6]} 3... Nf6 {[%clk 0:04:57.1]} 4. e5
{[%clk 0:04:47.3]} 4... Nd5 {[%clk 0:04:56]} 5. d4 {[%clk 0:04:47]} 5... cxd4
{[%clk 0:04:55.9]} 6. cxd4 {[%clk 0:04:44.8]} 6... b6 {[%clk 0:04:55.3]} 7. Bd3
{[%clk 0:04:41]} 7... Bb7 {[%clk 0:04:53.3]} 8. O-O {[%clk 0:04:38.4]} 8... d6
{[%clk 0:04:52.3]} 9. a3 {[%clk 0:04:32.2]} 9... Nd7 {[%clk 0:04:49.4]} 10. Qe2
{[%clk 0:04:29.2]} 10... dxe5 {[%clk 0:04:39.4]} 11. dxe5 {[%clk 0:04:27.2]}
11... Be7 {[%clk 0:04:33.8]} 12. Rd1 {[%clk 0:04:16.8]} 12... O-O {[%clk
0:04:30.5]} 13. Be4 {[%clk 0:04:08.3]} 13... Qc7 {[%clk 0:04:21.3]} 14. b4
{[%clk 0:04:00.4]} 14... a5 {[%clk 0:03:47.2]} 15. bxa5 {[%clk 0:03:48.8]} 15...
bxa5 {[%clk 0:03:43.1]} 16. Bg5 {[%clk 0:03:42.6]} 16... Ba6 {[%clk 0:02:26.4]}
17. Qc2 {[%clk 0:03:28.8]} 17... Qxc2 {[%clk 0:02:22.9]} 18. Bxc2 {[%clk
0:03:27.7]} 18... Bxg5 {[%clk 0:02:19]} 19. Nxg5 {[%clk 0:03:25.6]} 19... h6
{[%clk 0:02:18]} 20. Nf3 {[%clk 0:03:19.4]} 20... Nc5 {[%clk 0:02:12.9]} 21.
Nbd2 {[%clk 0:03:10]} 21... Rac8 {[%clk 0:02:01.3]} 22. Ne4 {[%clk 0:03:07.6]}
22... Nxe4 {[%clk 0:01:58.8]} 23. Bxe4 {[%clk 0:03:05.9]} 23... Nc3 {[%clk
0:01:58.4]} 24. Re1 {[%clk 0:03:03.3]} 24... Nxe4 {[%clk 0:01:50.7]} 25. Rxe4
{[%clk 0:03:02.2]} 25... Bb7 {[%clk 0:01:50.1]} 26. Re3 {[%clk 0:02:58]} 26...
Rc2 {[%clk 0:01:46.5]} 27. Rb1 {[%clk 0:02:50.8]} 27... Bxf3 {[%clk 0:01:41]}
28. Rxf3 {[%clk 0:02:43.6]} 28... Rfc8 {[%clk 0:01:40.2]} 29. g3 {[%clk
0:02:28.5]} 29... Rc1+ {[%clk 0:01:39.2]} 30. Rxc1 {[%clk 0:02:26.5]} 30...
Rxc1+ {[%clk 0:01:39.1]} 31. Kg2 {[%clk 0:02:25.3]} 31... Rc5 {[%clk 0:01:37.5]}
32. Re3 {[%clk 0:02:23.8]} 32... Kf8 {[%clk 0:01:36.9]} 33. f4 {[%clk
0:02:17.4]} 33... Ke7 {[%clk 0:01:36.3]} 34. Rd3 {[%clk 0:02:15.6]} 34... g5
{[%clk 0:01:15.6]} 35. h3 {[%clk 0:02:11.1]} 35... gxf4 {[%clk 0:01:12.6]} 36.
gxf4 {[%clk 0:02:09.8]} 36... Rd5 {[%clk 0:01:10]} 37. Rb3 {[%clk 0:02:02.1]}
37... Rc5 {[%clk 0:01:01.8]} 38. Kg3 {[%clk 0:01:59.3]} 38... a4 {[%clk
0:01:00.1]} 39. Rd3 {[%clk 0:01:56.5]} 39... Rb5 {[%clk 0:00:59.2]} 40. Kg4
{[%clk 0:01:52.4]} 40... Rb3 {[%clk 0:00:58.4]} 41. Rd4 {[%clk 0:01:51.4]} 41...
Rxa3 {[%clk 0:00:56.7]} 42. Rb4 {[%clk 0:01:50.1]} 42... Ra1 {[%clk 0:00:54.4]}
43. Rb7+ {[%clk 0:01:48.4]} 43... Kf8 {[%clk 0:00:49.9]} 44. Kh5 {[%clk
0:01:44.3]} 44... Kg7 {[%clk 0:00:46.7]} 45. f5 {[%clk 0:01:38.9]} 45... exf5
{[%clk 0:00:19]} 46. e6 {[%clk 0:01:37.7]} 46... Rg1 {[%clk 0:00:15.4]} 47.
Rxf7+ {[%clk 0:01:34.2]} 47... Kg8 {[%clk 0:00:14]} 48. Ra7 {[%clk 0:01:18.9]}
48... Re1 {[%clk 0:00:12.4]} 49. Kxh6 {[%clk 0:01:05.3]} 49... Kf8 {[%clk
0:00:11.9]} 50. Kg5 {[%clk 0:01:02.4]} 50... Rxe6 {[%clk 0:00:10.5]} 51. Kxf5
{[%clk 0:01:01.2]} 51... Rb6 {[%clk 0:00:10.2]} 52. Rxa4 {[%clk 0:00:59]} 52...
Rb3 {[%clk 0:00:09.1]} 53. h4 {[%clk 0:00:57.1]} 53... Rh3 {[%clk 0:00:08.6]}
54. Kg4 {[%clk 0:00:55]} 54... Rh1 {[%clk 0:00:07.2]} 55. Ra5 {[%clk 0:00:49.1]}
55... Kg7 {[%clk 0:00:06.8]} 56. Rg5+ {[%clk 0:00:46.5]} 56... Kh7 {[%clk
0:00:05.6]} 57. Ra5 {[%clk 0:00:45.2]} 57... Rg1+ {[%clk 0:00:04.6]} 58. Kh3
{[%clk 0:00:44.3]} 58... Rh1+ {[%clk 0:00:04]} 59. Kg3 {[%clk 0:00:42.9]} 59...
Rb1 {[%clk 0:00:03.9]} 60. Ra3 {[%clk 0:00:41.1]} 60... Rb4 {[%clk 0:00:03]} 61.
Rc3 {[%clk 0:00:39.7]} 61... Kh6 {[%clk 0:00:02.5]} 62. Rc5 {[%clk 0:00:38.7]}
62... Rb3+ {[%clk 0:00:01.4]} 63. Kg4 {[%clk 0:00:37.6]} 63... Rb4+ {[%clk
0:00:01.1]} 64. Kh3 {[%clk 0:00:36.6]} 64... Rb3+ {[%clk 0:00:00.5]} 65. Kg4
{[%clk 0:00:35.8]} 65... Rb4+ {[%clk 0:00:00.1]} 66. Kf3 {[%clk 0:00:34.3]} 1-0

[Event "Live Chess"]
[Site "Chess.com"]
[Date "2024.06.02"]
[Round "-"]
[White "CheckThis4"]
[Black "MagnersCarlsberg2870"]
[Result "1-0"]
[WhiteElo "2680"]
[BlackElo "1775"]
[TimeControl "300"]
[EndTime "6:57:17 PDT"]
[Termination "CheckThis4 won by resignation"]

1. d4 {[%clk 0:04:58.2]} 1... Nf6 {[%clk 0:04:58.6]} 2. Nc3 {[%clk 0:04:55.9]}
2... c5 {[%clk 0:04:50.8]} 3. d5 {[%clk 0:04:54.7]} 3... d6 {[%clk 0:04:49.7]}
4. e4 {[%clk 0:04:53.7]} 4... g6 {[%clk 0:04:48.1]} 5. f4 {[%clk 0:04:52.3]}
5... Nbd7 {[%clk 0:04:44.4]} 6. Nf3 {[%clk 0:04:50.4]} 6... Bg7 {[%clk
0:04:41.1]} 7. e5 {[%clk 0:04:49]} 7... dxe5 {[%clk 0:04:37.6]} 8. fxe5 {[%clk
0:04:48.9]} 8... Ng4 {[%clk 0:04:35.7]} 9. e6 {[%clk 0:04:47.8]} 9... Bxc3+
{[%clk 0:04:28.6]} 10. bxc3 {[%clk 0:04:45]} 10... Nde5 {[%clk 0:04:24.2]} 11.
Bb5+ {[%clk 0:04:35.8]} 11... Kf8 {[%clk 0:04:22]} 12. Nxe5 {[%clk 0:04:33.4]}
12... Nxe5 {[%clk 0:04:20.6]} 13. Bh6+ {[%clk 0:04:32.3]} 13... Kg8 {[%clk
0:04:18.4]} 14. O-O {[%clk 0:04:31]} 14... f5 {[%clk 0:04:13.8]} 15. Qe2 {[%clk
0:04:23.7]} 15... Qc7 {[%clk 0:04:05.9]} 16. Bf4 {[%clk 0:04:20.2]} 1-0

[Event "Live Chess"]
[Site "Chess.com"]
[Date "2024.06.02"]
[Round "-"]
[White "GoldsmanB"]
[Black "wadsy27"]
[Result "0-1"]
[WhiteElo "1101"]
[BlackElo "2588"]
[TimeControl "300"]
[EndTime "6:57:21 PDT"]
[Termination "wadsy27 won by resignation"]

1. d4 {[%clk 0:04:56.8]} 1... Nf6 {[%clk 0:04:59]} 2. c4 {[%clk 0:04:53]} 2...
g6 {[%clk 0:04:58.6]} 3. Nc3 {[%clk 0:04:51.4]} 3... Bg7 {[%clk 0:04:58.1]} 4.
Nf3 {[%clk 0:04:47.5]} 4... d6 {[%clk 0:04:57.7]} 5. e3 {[%clk 0:04:45.6]} 5...
O-O {[%clk 0:04:57.3]} 6. Bd3 {[%clk 0:04:44.9]} 6... Nbd7 {[%clk 0:04:55.6]} 7.
O-O {[%clk 0:04:44]} 7... e5 {[%clk 0:04:54.1]} 8. dxe5 {[%clk 0:04:38.9]} 8...
dxe5 {[%clk 0:04:53.3]} 9. Be2 {[%clk 0:04:36.1]} 9... c6 {[%clk 0:04:51.8]} 10.
Bd2 {[%clk 0:04:34.4]} 10... Re8 {[%clk 0:04:50.9]} 11. Qb3 {[%clk 0:04:32.2]}
11... Nc5 {[%clk 0:04:43.1]} 12. Qc2 {[%clk 0:04:22]} 12... Bf5 {[%clk
0:04:37.7]} 13. Qd1 {[%clk 0:04:18.3]} 13... Qd7 {[%clk 0:04:26.7]} 14. Bc1
{[%clk 0:04:13.1]} 14... Rad8 {[%clk 0:04:23.6]} 15. Qxd7 {[%clk 0:04:10.2]}
15... Rxd7 {[%clk 0:04:23.5]} 16. b4 {[%clk 0:04:03]} 16... Nd3 {[%clk
0:04:21.5]} 17. Bxd3 {[%clk 0:04:01.1]} 17... Bxd3 {[%clk 0:04:19.2]} 18. Rd1
{[%clk 0:03:58.6]} 18... Bxc4 {[%clk 0:04:18.4]} 19. Rxd7 {[%clk 0:03:55.1]}
19... Nxd7 {[%clk 0:04:18.3]} 20. Ba3 {[%clk 0:03:52.9]} 20... Nb6 {[%clk
0:04:13.9]} 21. Ne4 {[%clk 0:03:46.6]} 21... Bd5 {[%clk 0:04:07.2]} 22. Nd6
{[%clk 0:03:43.1]} 22... Rb8 {[%clk 0:04:05.2]} 23. Rd1 {[%clk 0:03:38.2]} 23...
Bxa2 {[%clk 0:03:58.2]} 24. Rd2 {[%clk 0:03:31]} 24... Nc4 {[%clk 0:03:52.6]}
25. Nxc4 {[%clk 0:03:28]} 25... Bxc4 {[%clk 0:03:51.2]} 26. Rd7 {[%clk
0:03:25.7]} 26... Be6 {[%clk 0:03:48.6]} 27. Re7 {[%clk 0:03:20.8]} 27... Bf8
{[%clk 0:03:47.8]} 28. Rc7 {[%clk 0:03:15.5]} 28... Bd6 {[%clk 0:03:46.6]} 0-1